Department Family,Entity,Date of Payment,Expense Type,Expense Area,Supplier,Transaction Number,Amount in Sterling,Line Description
ECGD,ECGD,7 Jun 21,Legal Recoverable Expense,LD,White & Case LLP USD,         646,"51,676.62",Legal Services
ECGD,ECGD,28 Jun 21,Legal Recoverable Expense,LD,WINSTON & STRAWN LONDON LLP,         651,"48,690.00",Legal Services
ECGD,ECGD,28 Jun 21,Legal Recoverable Expense,LD,WINSTON & STRAWN LONDON LLP,         652,"31,522.20",Legal Services
ECGD,ECGD,28 Jun 21,Legal Recoverable Expense,LD,WINSTON & STRAWN LONDON LLP,         653,"52,527.60",Legal Services
ECGD,ECGD,28 Jun 21,Legal Recoverable Expense,LD,WINSTON & STRAWN LONDON LLP,         654,"63,322.15",Legal Services
ECGD,ECGD,28 Jun 21,Legal Recoverable Expense,LD,Matheson,         655,"80,499.72",Legal Services
ECGD,ECGD,3 Jun 21,Change Board Projects,Change Board,Cogsworx Limited,       80825,"31,500.00",Project IT services
ECGD,ECGD,3 Jun 21,Change Board Projects,Change Board,Cogsworx Limited,       80826,"24,800.00",Project IT services
ECGD,ECGD,7 Jun 21,IT Managed Services,ID,Risual Ltd,       80838,"22,795.25",IT Services
ECGD,ECGD,7 Jun 21,Change Board Projects,Change Board,Bytes Software Services Ltd,       80840,"46,081.56",Project IT services
ECGD,ECGD,7 Jun 21,Agency - Interim Managers,HRD,Alexander Mann Solutions,       80842,"1,519.32",Interim Staff
ECGD,ECGD,7 Jun 21,Agency - Interim Managers,HRD,Alexander Mann Solutions,       80842,"1,899.15",Interim Staff
ECGD,ECGD,7 Jun 21,Agency - Interim Managers,HRD,Alexander Mann Solutions,       80842,"1,988.40",Interim Staff
ECGD,ECGD,7 Jun 21,Agency - Interim Managers,HRD,Alexander Mann Solutions,       80842,"2,100.20",Interim Staff
ECGD,ECGD,7 Jun 21,Agency - Interim Managers,HRD,Alexander Mann Solutions,       80842,"2,110.16",Interim Staff
ECGD,ECGD,7 Jun 21,Agency - Interim Managers,HRD,Alexander Mann Solutions,       80842,"2,637.70",Interim Staff
ECGD,ECGD,7 Jun 21,Agency - Interim Managers,HRD,Alexander Mann Solutions,       80842,"2,637.70",Interim Staff
ECGD,ECGD,7 Jun 21,Agency - Interim Managers,HRD,Alexander Mann Solutions,       80842,"2,637.70",Interim Staff
ECGD,ECGD,7 Jun 21,Agency - Interim Managers,HRD,Alexander Mann Solutions,       80842,"2,668.45",Interim Staff
ECGD,ECGD,7 Jun 21,Agency - Interim Managers,HRD,Alexander Mann Solutions,       80842,"3,005.50",Interim Staff
ECGD,ECGD,7 Jun 21,Agency - Interim Managers,HRD,Alexander Mann Solutions,       80842,"3,005.50",Interim Staff
ECGD,ECGD,7 Jun 21,Agency - Specialist Contractors,HRD,Alexander Mann Solutions,       80842,"1,154.85",Interim Staff
ECGD,ECGD,7 Jun 21,Agency - Specialist Contractors,HRD,Alexander Mann Solutions,       80842,"2,053.08",Interim Staff
ECGD,ECGD,7 Jun 21,Agency - Specialist Contractors,HRD,Alexander Mann Solutions,       80842,"2,258.44",Interim Staff
ECGD,ECGD,7 Jun 21,Agency - Specialist Contractors,HRD,Alexander Mann Solutions,       80842,"2,730.25",Interim Staff
ECGD,ECGD,7 Jun 21,Agency - Specialist Contractors,HRD,Alexander Mann Solutions,       80842,"2,823.05",Interim Staff
ECGD,ECGD,7 Jun 21,Agency - Specialist Contractors,HRD,Alexander Mann Solutions,       80842,"2,823.05",Interim Staff
ECGD,ECGD,7 Jun 21,Agency - Specialist Contractors,HRD,Alexander Mann Solutions,       80842,"3,207.95",Interim Staff
ECGD,ECGD,7 Jun 21,Agency - Temporary Staff,HRD,Alexander Mann Solutions,       80842,519.30,Interim Staff
ECGD,ECGD,7 Jun 21,Agency - Temporary Staff,HRD,Alexander Mann Solutions,       80842,796.61,Interim Staff
ECGD,ECGD,14 Jun 21,Agency - Interim Managers,HRD,Alexander Mann Solutions,       80859,"1,139.49",Interim Staff
ECGD,ECGD,14 Jun 21,Agency - Interim Managers,HRD,Alexander Mann Solutions,       80859,"1,590.72",Interim Staff
ECGD,ECGD,14 Jun 21,Agency - Interim Managers,HRD,Alexander Mann Solutions,       80859,"1,680.16",Interim Staff
ECGD,ECGD,14 Jun 21,Agency - Interim Managers,HRD,Alexander Mann Solutions,       80859,"2,045.24",Interim Staff
ECGD,ECGD,14 Jun 21,Agency - Interim Managers,HRD,Alexander Mann Solutions,       80859,"2,556.55",Interim Staff
ECGD,ECGD,14 Jun 21,Agency - Specialist Contractors,HRD,Alexander Mann Solutions,       80859,923.88,Interim Staff
ECGD,ECGD,14 Jun 21,Agency - Specialist Contractors,HRD,Alexander Mann Solutions,       80859,"2,184.20",Interim Staff
ECGD,ECGD,14 Jun 21,Agency - Specialist Contractors,HRD,Alexander Mann Solutions,       80859,"2,258.44",Interim Staff
ECGD,ECGD,14 Jun 21,Agency - Specialist Contractors,HRD,Alexander Mann Solutions,       80859,"2,258.44",Interim Staff
ECGD,ECGD,14 Jun 21,Agency - Specialist Contractors,HRD,Alexander Mann Solutions,       80859,"2,258.44",Interim Staff
ECGD,ECGD,14 Jun 21,Agency - Specialist Contractors,HRD,Alexander Mann Solutions,       80859,"2,566.36",Interim Staff
ECGD,ECGD,14 Jun 21,Agency - Temporary Staff,HRD,Alexander Mann Solutions,       80859,635.14,Interim Staff
ECGD,ECGD,14 Jun 21,Agency - Temporary Staff,HRD,Alexander Mann Solutions,       80859,692.40,Interim Staff
ECGD,ECGD,17 Jun 21,IT Software Licensing & Subscription,ID,Dun & Bradstreet Ltd,       80872,"36,000.00",IT Services
ECGD,ECGD,17 Jun 21,Change Board Projects,Change Board,KPMG,       80874,"26,300.00",Project IT services
ECGD,ECGD,17 Jun 21,Change Board Projects,Change Board,Method4 Limited,       80876,"25,838.65",Project IT services
ECGD,ECGD,22 Jun 21,Agency - Interim Managers,HRD,Alexander Mann Solutions,       80883,"2,100.20",Interim Staff
ECGD,ECGD,22 Jun 21,Agency - Interim Managers,HRD,Alexander Mann Solutions,       80883,"2,187.24",Interim Staff
ECGD,ECGD,22 Jun 21,Agency - Interim Managers,HRD,Alexander Mann Solutions,       80883,"2,404.40",Interim Staff
ECGD,ECGD,22 Jun 21,Agency - Interim Managers,HRD,Alexander Mann Solutions,       80883,"2,556.55",Interim Staff
ECGD,ECGD,22 Jun 21,Agency - Interim Managers,HRD,Alexander Mann Solutions,       80883,"2,668.45",Interim Staff
ECGD,ECGD,22 Jun 21,Agency - Interim Managers,HRD,Alexander Mann Solutions,       80883,"3,005.50",Interim Staff
ECGD,ECGD,22 Jun 21,Agency - Specialist Contractors,HRD,Alexander Mann Solutions,       80883,"1,154.85",Interim Staff
ECGD,ECGD,22 Jun 21,Agency - Specialist Contractors,HRD,Alexander Mann Solutions,       80883,"2,258.44",Interim Staff
ECGD,ECGD,22 Jun 21,Agency - Specialist Contractors,HRD,Alexander Mann Solutions,       80883,"2,730.25",Interim Staff
ECGD,ECGD,22 Jun 21,Agency - Specialist Contractors,HRD,Alexander Mann Solutions,       80883,"2,823.05",Interim Staff
ECGD,ECGD,22 Jun 21,Agency - Specialist Contractors,HRD,Alexander Mann Solutions,       80883,"2,823.05",Interim Staff
ECGD,ECGD,22 Jun 21,Agency - Specialist Contractors,HRD,Alexander Mann Solutions,       80883,"2,951.35",Interim Staff
ECGD,ECGD,22 Jun 21,Agency - Specialist Contractors,HRD,Alexander Mann Solutions,       80883,"2,951.35",Interim Staff
ECGD,ECGD,22 Jun 21,Agency - Specialist Contractors,HRD,Alexander Mann Solutions,       80883,"2,951.35",Interim Staff
ECGD,ECGD,22 Jun 21,Agency - Specialist Contractors,HRD,Alexander Mann Solutions,       80883,"3,207.95",Interim Staff
ECGD,ECGD,22 Jun 21,Agency - Temporary Staff,HRD,Alexander Mann Solutions,       80883,796.61,Interim Staff
ECGD,ECGD,22 Jun 21,Agency - Temporary Staff,HRD,Alexander Mann Solutions,       80883,865.50,Interim Staff
ECGD,ECGD,25 Jun 21,IT Software Licensing & Subscription,ID,Fidelity National Info Services,       80895,"19,369.91",IT Services
ECGD,ECGD,25 Jun 21,IT Software Licensing & Subscription,ID,Fidelity National Info Services,       80895,"77,479.68",IT Services
ECGD,ECGD,24 Jun 21,Capital Computers,ID,Dell  Incorporated,       80899,"92,900.80",IT Hardware
ECGD,ECGD,24 Jun 21,Change Board Projects,Change Board,KPMG,       80900,"21,700.00",Project IT services
ECGD,ECGD,25 Jun 21,Agency - Interim Managers,HRD,Alexander Mann Solutions,       80908,"1,899.15",Interim Staff
ECGD,ECGD,25 Jun 21,Agency - Interim Managers,HRD,Alexander Mann Solutions,       80908,"1,899.15",Interim Staff
ECGD,ECGD,25 Jun 21,Agency - Interim Managers,HRD,Alexander Mann Solutions,       80908,"1,988.40",Interim Staff
ECGD,ECGD,25 Jun 21,Agency - Interim Managers,HRD,Alexander Mann Solutions,       80908,"2,100.20",Interim Staff
ECGD,ECGD,25 Jun 21,Agency - Interim Managers,HRD,Alexander Mann Solutions,       80908,"2,110.16",Interim Staff
ECGD,ECGD,25 Jun 21,Agency - Interim Managers,HRD,Alexander Mann Solutions,       80908,"2,373.93",Interim Staff
ECGD,ECGD,25 Jun 21,Agency - Interim Managers,HRD,Alexander Mann Solutions,       80908,"2,556.55",Interim Staff
ECGD,ECGD,25 Jun 21,Agency - Interim Managers,HRD,Alexander Mann Solutions,       80908,"2,637.70",Interim Staff
ECGD,ECGD,25 Jun 21,Agency - Interim Managers,HRD,Alexander Mann Solutions,       80908,"2,668.45",Interim Staff
ECGD,ECGD,25 Jun 21,Agency - Interim Managers,HRD,Alexander Mann Solutions,       80908,"3,005.50",Interim Staff
ECGD,ECGD,25 Jun 21,Agency - Interim Managers,HRD,Alexander Mann Solutions,       80908,"3,005.50",Interim Staff
ECGD,ECGD,25 Jun 21,Agency - Specialist Contractors,HRD,Alexander Mann Solutions,       80908,"1,154.85",Interim Staff
ECGD,ECGD,25 Jun 21,Agency - Specialist Contractors,HRD,Alexander Mann Solutions,       80908,"2,730.25",Interim Staff
ECGD,ECGD,25 Jun 21,Agency - Specialist Contractors,HRD,Alexander Mann Solutions,       80908,"2,823.05",Interim Staff
ECGD,ECGD,25 Jun 21,Agency - Specialist Contractors,HRD,Alexander Mann Solutions,       80908,"2,823.05",Interim Staff
ECGD,ECGD,25 Jun 21,Agency - Temporary Staff,HRD,Alexander Mann Solutions,       80908,484.43,Interim Staff
ECGD,ECGD,25 Jun 21,Agency - Temporary Staff,HRD,Alexander Mann Solutions,       80908,865.50,Interim Staff
ECGD,ECGD,28 Jun 21,Change Board Projects,Change Board,Cogsworx Limited,       80914,"22,750.00",Project IT Consultancy
ECGD,ECGD,28 Jun 21,Change Board Projects,Change Board,Cogsworx Limited,       80916,"28,000.00",Project IT services
ECGD,ECGD,28 Jun 21,Change Board Projects,Change Board,Cogsworx Limited,       80917,"28,500.00",Project IT services
ECGD,ECGD,30 Jun 21,Overseas Export Managers,OCCMC,Foreign & Commonwealth Office,       80918,"59,282.84",UKEF overseas staffing 
9 Jul 21,,,- 1 -,,,06:53:28,,
